bitfinex-derivatives/quotes_BTCF0:USTF0_20250324
["timestamp","ask_amount","ask_price","bid_price","bid_amount"]
[1742858594142,0.1146546,87208.0,87207.0,0.72078866]
[1742858594330,0.11577461,87208.0,87207.0,0.72078866]
[1742858595837,0.16577461,87208.0,87207.0,0.72078866]
[1742858598442,0.21857461,87208.0,87207.0,0.60613516]
[1742858598754,0.21857461,87208.0,87207.0,0.3718392]
[1742858599039,0.21857461,87208.0,87200.0,0.111192]
[1742858599040,0.0573303,87204.0,87200.0,0.111192]
[1742858599231,0.1719937,87202.0,87201.0,0.0479]
[1742858599431,0.1732737,87202.0,87201.0,0.0983]
[1742858599630,0.39274273,87202.0,87201.0,0.0983]
[1742858600037,0.39274273,87202.0,87201.0,0.0485]
[1742858600436,0.33994273,87202.0,87201.0,0.0495]
[1742858600640,0.33994273,87202.0,87201.0,0.4016]
[1742858601238,0.38944273,87202.0,87201.0,0.5162638]
[1742858602232,0.34094273,87202.0,87201.0,0.5162638]
[1742858604147,0.39084273,87202.0,87201.0,0.5162638]
[1742858604344,0.39084273,87202.0,87201.0,0.1516]
[1742858606444,0.39084273,87202.0,87201.0,0.0495]
[1742858607346,0.39933006,87202.0,87201.0,0.0495]
[1742858607943,0.39933006,87202.0,87201.0,0.0016]
[1742858608248,0.39933006,87202.0,87201.0,0.001]
[1742858608449,0.39933006,87202.0,87201.0,0.0539]
[1742858608650,0.0573382,87192.0,87188.0,0.1146801]
[1742858608847,0.1146782,87190.0,87189.0,0.2191783]
[1742858609052,0.1159582,87190.0,87189.0,0.14578]
[1742858609249,0.1146861,87184.0,87179.0,0.20620491]
[1742858609549,0.4771661,87184.0,87181.0,0.0486]
[1742858609746,0.5754661,87184.0,87183.0,0.2504588]
[1742858609936,0.69015815,87184.0,87183.0,0.2504588]
[1742858610138,0.69015815,87184.0,87183.0,0.0004588]
[1742858610342,0.69015815,87184.0,87183.0,0.2251462]
[1742858610543,0.2146661,87184.0,87183.0,0.4551462]
[1742858610744,0.2156661,87184.0,87183.0,0.5553462]
[1742858611246,0.2156661,87184.0,87183.0,0.2106588]
[1742858611450,0.2156661,87184.0,87183.0,0.3253462]
[1742858611748,0.1677661,87184.0,87183.0,0.2737462]
[1742858611949,0.1677661,87184.0,87183.0,0.5337462]
[1742858611950,0.1687661,87184.0,87183.0,0.5337462]
[1742858612443,0.1687661,87184.0,87183.0,0.5826462]
[1742858612840,0.2198661,87184.0,87183.0,0.5826462]
[1742858613142,0.3345667,87184.0,87183.0,0.0490588]
[1742858613344,0.1146967,87176.0,87159.0,0.0573593]
[1742858613550,0.1147006,87173.0,87172.0,0.32090681]
[1742858613765,0.4771806,87173.0,87172.0,0.32090681]
[1742858614249,0.4771806,87173.0,87159.0,0.3608]
[1742858614250,1.0334,87173.0,87159.0,0.3608]
[1742858614449,0.114744,87140.0,87100.0,0.105]
[1742858614650,0.1147691,87121.0,87100.0,0.105]
[1742858614951,1.25498665,87121.0,87120.0,0.84644001]
[1742858615144,0.95276417,87121.0,87120.0,0.47644001]
[1742858615337,0.95276417,87121.0,87120.0,0.57804001]
[1742858615542,0.95276417,87121.0,87120.0,0.47644001]
[1742858615754,0.36248,87121.0,87120.0,0.57644001]
[1742858616048,0.3608,87133.0,87120.0,1.01644001]
[1742858616353,0.36196,87133.0,87120.0,0.81924061]
[1742858616554,0.1147691,87121.0,87120.0,0.81924061]
[1742858616853,0.1147691,87121.0,87120.0,0.92924061]
[1742858617147,0.1147691,87121.0,87120.0,0.94418915]
[1742858617352,0.0573837,87123.0,87120.0,0.83418915]
[1742858617353,0.1147666,87123.0,87120.0,0.83418915]
[1742858617556,0.114768,87122.0,87120.0,0.83418915]
[1742858617859,0.1147691,87121.0,87120.0,0.81924061]
[1742858618043,0.1147691,87121.0,87120.0,0.90704001]
[1742858618847,0.1147691,87121.0,87120.0,0.4306]
[1742858619043,0.1147691,87121.0,87120.0,0.44237864]
[1742858619240,0.1147691,87121.0,87120.0,0.4306]
[1742858619453,0.11596911,87121.0,87120.0,0.4306]
[1742858620947,0.1147691,87121.0,87120.0,0.4306]
[1742858621147,0.1159291,87121.0,87120.0,0.4306]
[1742858621344,0.06288,87122.0,87121.0,0.1147691]
[1742858621652,0.06288,87122.0,87121.0,0.5964691]
[1742858621857,0.1776477,87122.0,87121.0,0.5964691]
[1742858622243,0.1776477,87122.0,87121.0,0.4817]
[1742858622461,0.1788077,87122.0,87121.0,0.4817]
[1742858623755,0.06404,87122.0,87121.0,0.5964691]
[1742858624647,0.06288,87122.0,87121.0,0.5964691]
[1742858626862,0.06288,87122.0,87121.0,0.59394]
[1742858626863,0.1776477,87122.0,87121.0,0.59394]
[1742858627064,0.23098771,87122.0,87121.0,0.7087091]
[1742858627561,0.23098771,87122.0,87121.0,0.59394]
[1742858627770,0.23098771,87122.0,87121.0,0.7087091]
[1742858627950,0.06412001,87122.0,87121.0,0.7087091]
[1742858628151,0.06288,87122.0,87121.0,0.7087091]
[1742858632863,0.06288,87122.0,87121.0,0.5964691]
[1742858633066,0.06288,87122.0,87121.0,0.7085891]
[1742858633759,0.06288,87122.0,87121.0,0.5964691]
[1742858633964,0.10988,87122.0,87121.0,0.7085091]
[1742858634460,0.11104,87122.0,87121.0,0.7085091]
[1742858634762,0.06404,87122.0,87121.0,0.7085091]
[1742858634968,0.06288,87122.0,87121.0,0.7085091]
[1742858635665,0.06412001,87122.0,87121.0,0.7085091]
[1742858636966,0.06288,87122.0,87121.0,0.7085091]
[1742858637173,0.06404,87122.0,87121.0,0.7085091]
[1742858637359,0.06288,87122.0,87121.0,0.7085091]
[1742858637855,0.06404,87122.0,87121.0,0.7085091]
[1742858638466,0.06288,87122.0,87121.0,0.7085091]
[1742858638859,0.06412001,87122.0,87121.0,0.7085091]
[1742858639363,0.11422001,87122.0,87121.0,0.7085091]
[1742858639665,0.11422001,87122.0,87121.0,0.5964691]
[1742858639865,0.58978771,87122.0,87121.0,0.7084691]
[1742858640068,0.6409077,87122.0,87121.0,0.7084691]
[1742858640264,0.47494,87122.0,87121.0,0.7084691]
[1742858640567,0.06404,87122.0,87121.0,0.7084691]
[1742858640869,0.06404,87122.0,87121.0,0.72389266]
[1742858641066,0.06404,87122.0,87121.0,0.73852461]
[1742858641757,0.0484,87127.0,87121.0,0.62375551]
[1742858641964,0.10091572,87144.0,87135.0,0.1147506]
[1742858642170,0.3616,87136.0,87135.0,0.61309745]
[1742858642568,0.3616,87136.0,87135.0,0.7264294]
[1742858642971,0.0484,87143.0,87142.0,0.1147414]
[1742858643270,0.04900001,87143.0,87142.0,0.51090561]
[1742858643473,0.04900001,87143.0,87142.0,0.67733756]
[1742858643656,0.00060001,87143.0,87142.0,0.68939972]
[1742858643859,0.00060001,87143.0,87142.0,0.68939713]
[1742858644059,0.00017207,87146.0,87144.0,0.0573694]
[1742858644261,0.00093207,87146.0,87145.0,0.34382981]
[1742858644462,0.00093207,87146.0,87145.0,0.45458981]
[1742858644863,0.16859288,87160.0,87157.0,0.1147217]
[1742858645063,0.3618,87158.0,87157.0,0.3279617]
[1742858645460,0.3618,87158.0,87157.0,0.33651613]
[1742858645660,0.3618,87158.0,87157.0,0.42651613]
[1742858646361,0.3648,87158.0,87157.0,0.42651613]
[1742858646567,0.4835203,87158.0,87157.0,0.3479217]
[1742858646768,0.5311203,87158.0,87157.0,0.3479217]
[1742858647378,0.5311203,87158.0,87157.0,0.23336]
[1742858647681,0.5311203,87158.0,87157.0,0.2480817]
[1742858647868,0.64585511,87158.0,87157.0,0.13336]
[1742858648070,0.64585511,87158.0,87157.0,0.2480817]
[1742858648265,0.64585511,87158.0,87157.0,0.001]
[1742858648469,0.1147309,87150.0,87136.0,0.0573746]
[1742858648673,0.4761709,87150.0,87146.0,0.2270952]
[1742858648978,0.4761709,87150.0,87149.0,0.11566438]
[1742858649779,0.4781709,87150.0,87149.0,0.11566438]
[1742858650079,0.4801709,87150.0,87149.0,0.11566438]
[1742858650576,0.36544,87150.0,87149.0,0.11566438]
[1742858650876,0.36544,87150.0,87149.0,0.22566438]
[1742858651074,0.36544,87150.0,87149.0,0.11566438]
[1742858651288,0.4801709,87150.0,87149.0,0.23027345]
[1742858651487,0.5323709,87150.0,87149.0,0.23027345]
[1742858651671,0.41764,87150.0,87149.0,0.23027345]
[1742858651976,0.05684,87150.0,87149.0,0.42027345]
[1742858652169,0.0562,87150.0,87149.0,0.53027345]
[1742858652369,0.0562,87150.0,87149.0,0.23027345]
[1742858652567,0.05696,87150.0,87149.0,0.45027345]
[1742858652775,0.0562,87150.0,87149.0,0.45027345]
[1742858652970,0.004,87150.0,87149.0,0.45027345]
[1742858653170,0.004,87150.0,87149.0,0.44027345]
[1742858653579,0.0507,87157.0,87156.0,0.114723]
[1742858653778,0.05138,87157.0,87156.0,0.578003]
[1742858654477,0.05138,87157.0,87156.0,0.69261207]
[1742858655581,0.05438,87157.0,87156.0,0.69261207]
[1742858656576,0.05738,87157.0,87156.0,0.69261207]
[1742858656771,0.10908,87157.0,87156.0,0.52951207]
[1742858656976,0.2238017,87157.0,87156.0,0.59273207]
[1742858657184,0.33853783,87157.0,87156.0,0.25804907]
[1742858657582,0.33853783,87157.0,87156.0,0.37277207]
[1742858658186,0.33853783,87157.0,87156.0,0.357963]
[1742858659984,0.33853783,87157.0,87156.0,0.00068]
[1742858660187,0.1147243,87155.0,87154.0,0.1147252]
[1742858660387,0.4762043,87155.0,87154.0,0.1154052]
[1742858660586,0.5754043,87155.0,87154.0,0.1147252]
[1742858660786,0.1147296,87151.0,87150.0,0.057365]
[1742858661098,0.057376,87135.0,87134.0,0.1147438]
[1742858661278,0.057376,87135.0,87134.0,0.3080638]
[1742858661480,0.058136,87135.0,87134.0,0.3080638]
[1742858661991,0.058136,87135.0,87134.0,0.3569638]
[1742858662287,0.2713893,87135.0,87134.0,0.4143389]
[1742858662489,0.2713893,87135.0,87134.0,0.4163789]
[1742858662692,0.2713893,87135.0,87134.0,0.2884789]
[1742858662985,0.2713893,87135.0,87134.0,0.3366789]
[1742858663186,0.2713893,87135.0,87134.0,0.3863789]
[1742858663384,0.2713893,87135.0,87134.0,0.3863389]
[1742858664595,0.05,87142.0,87134.0,0.3863389]
[1742858664596,0.0573659,87150.0,87139.0,0.0573723]
[1742858664782,0.3612,87160.0,87139.0,0.0573723]
[1742858664783,0.11491228,87143.0,87142.0,0.1147414]
[1742858664984,0.11559228,87143.0,87142.0,0.3060214]
[1742858665587,0.11559228,87143.0,87142.0,0.2160214]
[1742858666094,0.16649228,87143.0,87142.0,0.4260214]
[1742858666798,0.00085218,87143.0,87142.0,0.4260214]
[1742858667189,0.11559228,87143.0,87142.0,0.2160214]
[1742858667387,0.00085218,87143.0,87142.0,0.3160214]
[1742858667988,0.00085218,87143.0,87142.0,0.5760214]
[1742858668292,0.00085218,87143.0,87142.0,0.6889814]
[1742858668488,0.3608,87157.0,87155.0,0.1147243]
[1742858668693,0.20251145,87156.0,87155.0,0.6383643]
[1742858668894,0.20251145,87156.0,87155.0,0.64995337]
[1742858669089,0.20251145,87156.0,87155.0,0.79435337]
[1742858669090,0.00068,87156.0,87155.0,0.79435337]
[1742858669497,0.00368,87156.0,87155.0,0.79435337]
[1742858670591,0.00668,87156.0,87155.0,0.79435337]
[1742858673194,0.00668,87156.0,87155.0,0.79423337]
[1742858674498,0.05728,87156.0,87155.0,0.79423337]
[1742858674706,0.05728,87156.0,87155.0,0.7828043]
[1742858675210,0.05728,87156.0,87155.0,0.6698043]
[1742858675507,0.172003,87156.0,87155.0,0.7347643]
[1742858675707,0.223803,87156.0,87155.0,0.7347643]
[1742858677207,0.223803,87156.0,87155.0,0.5730043]
[1742858677396,0.223803,87156.0,87155.0,0.6859643]
[1742858680813,0.1720917,87153.0,87152.0,0.1147275]
[1742858681003,0.1727717,87153.0,87152.0,0.1153275]
[1742858681608,0.1147335,87148.0,87147.0,0.00017218]
[1742858681813,0.4763735,87148.0,87147.0,0.00017218]
[1742858682017,0.5743735,87148.0,87147.0,0.00017218]
[1742858682319,0.6891149,87148.0,87147.0,0.11490698]
[1742858682516,0.6891149,87148.0,87147.0,0.11558698]
[1742858684110,0.6891149,87148.0,87147.0,0.11658698]
[1742858684310,0.6891149,87148.0,87147.0,0.16418698]
[1742858684711,0.6891149,87148.0,87147.0,0.12608698]
[1742858685724,0.6891149,87148.0,87147.0,0.12708698]
[1742858685922,0.6891149,87148.0,87147.0,0.00168]
[1742858686112,0.6891149,87148.0,87147.0,0.001]
[1742858686513,0.6891149,87148.0,87147.0,0.002]
[1742858686814,0.6891149,87148.0,87147.0,0.0026]
[1742858687620,0.6891149,87148.0,87147.0,0.0016]
[1742858688020,0.6891149,87148.0,87147.0,0.1163348]
[1742858688318,0.6891149,87148.0,87147.0,0.0016]
[1742858688714,0.6891149,87148.0,87147.0,0.001]
[1742858689624,0.6891149,87148.0,87147.0,0.1163348]
[1742858690123,0.6891149,87148.0,87147.0,0.0016]
[1742858690924,0.6891149,87148.0,87147.0,0.0521]
[1742858691328,0.6891149,87148.0,87147.0,0.06692889]
[1742858691523,0.7387149,87148.0,87147.0,0.06592889]
[1742858691822,0.7387149,87148.0,87147.0,0.06692889]
[1742858693822,0.7387149,87148.0,87147.0,0.18166369]
[1742858694023,0.1720864,87155.0,87154.0,0.0573627]
[1742858694220,0.0580021,87155.0,87154.0,0.3598427]
[1742858694425,0.0580021,87155.0,87154.0,0.2704427]
[1742858694925,0.00064,87155.0,87154.0,0.3722427]
[1742858695229,0.1153643,87155.0,87154.0,0.38707159]
[1742858695726,0.00064,87155.0,87154.0,0.38707159]
[1742858696036,0.00164,87155.0,87154.0,0.38707159]
[1742858696215,0.00164,87155.0,87154.0,0.62707159]
[1742858696524,0.00164,87155.0,87154.0,0.63916784]
[1742858696722,0.3608,87157.0,87156.0,0.114723]
[1742858696919,0.36156,87157.0,87156.0,0.625483]
[1742858697121,0.36156,87157.0,87156.0,0.727583]
[1742858697323,0.00076,87157.0,87156.0,0.727583]
[1742858697526,0.0004,87160.0,87159.0,0.114719]
[1742858697719,0.0004,87160.0,87159.0,0.335519]
[1742858698034,0.00116,87160.0,87159.0,0.436719]
[1742858699432,0.00316,87160.0,87159.0,0.436719]
[1742858700219,0.00516,87160.0,87159.0,0.436719]
[1742858702525,0.0044,87160.0,87159.0,0.436719]
[1742858707421,0.0044,87160.0,87159.0,0.666719]
[1742858708438,0.00516,87160.0,87159.0,0.666719]
[1742858708825,0.0004,87176.0,87171.0,0.1147032]
[1742858709026,0.17042975,87172.0,87171.0,0.7575832]
[1742858709224,0.3608,87196.0,87174.0,0.0573496]
[1742858709436,0.36212,87180.0,87179.0,0.1146927]
[1742858709632,0.56529946,87180.0,87179.0,0.6260527]
[1742858709838,0.0501,87188.0,87186.0,0.1146835]
[1742858709839,0.17158429,87187.0,87186.0,0.1146835]
[1742858710142,0.17158429,87187.0,87186.0,1.1090035]
[1742858710438,0.17158429,87187.0,87186.0,1.1587035]
[1742858712136,0.17158429,87187.0,87186.0,1.1607035]
[1742858712335,0.17158429,87187.0,87186.0,1.2611435]
[1742858712837,0.00017207,87188.0,87187.0,0.1146822]
[1742858713029,0.00017207,87188.0,87187.0,0.5854622]
[1742858714139,0.00017207,87188.0,87187.0,0.5864622]
[1742858714723,0.05037207,87188.0,87187.0,0.5864622]
[1742858714934,0.05037207,87188.0,87187.0,0.5884622]
[1742858715342,0.00017207,87188.0,87187.0,0.5884622]
[1742858716231,0.05037207,87188.0,87187.0,0.5884622]
[1742858716938,0.10277207,87188.0,87187.0,0.5884622]
[1742858722637,0.05037207,87188.0,87187.0,0.5884622]
[1742858722843,0.00017207,87188.0,87187.0,0.5884622]
[1742858731541,0.00017207,87188.0,87187.0,0.4893622]
[1742858731740,0.21335297,87188.0,87187.0,0.6012822]
[1742858731947,0.21335297,87188.0,87187.0,0.4893622]
[1742858732239,0.68884831,87188.0,87187.0,0.22108]
[1742858732440,0.1146848,87185.0,87184.0,0.11188]
[1742858732747,0.11588481,87185.0,87184.0,0.11304]
[1742858732945,0.11588481,87185.0,87184.0,0.2277261]
[1742858733247,0.11588481,87185.0,87171.0,0.00017207]
[1742858733248,0.11589535,87185.0,87171.0,0.00017207]
[1742858733446,0.11589535,87185.0,87171.0,0.05752137]
[1742858733447,0.1147019,87172.0,87171.0,0.05752137]
[1742858733650,0.11530191,87172.0,87171.0,0.17028137]
[1742858734255,0.11530191,87172.0,87171.0,0.17024137]
[1742858734456,0.11530191,87172.0,87171.0,0.05836137]
[1742858734749,0.11530191,87172.0,87171.0,0.17836137]
[1742858734945,0.11530191,87172.0,87171.0,0.35124707]
[1742858735147,0.11530191,87172.0,87171.0,0.01001207]
[1742858735148,0.2300183,87172.0,87171.0,0.01001207]
[1742858735347,0.2300183,87172.0,87171.0,0.00917207]
[1742858735654,0.3260183,87172.0,87171.0,0.00917207]
[1742858736138,0.3260183,87172.0,87171.0,0.00517207]
[1742858736340,0.3260183,87172.0,87171.0,0.00117207]
[1742858736556,0.3731183,87172.0,87171.0,0.11687527]
[1742858736855,0.3731183,87172.0,87171.0,0.11771527]
[1742858737051,0.3731183,87172.0,87171.0,0.11571527]
[1742858737642,0.09660001,87172.0,87171.0,0.34571527]
[1742858737855,0.09660001,87172.0,87171.0,0.44171527]
[1742858738357,0.04780001,87172.0,87171.0,0.44171527]
[1742858738661,0.0472,87172.0,87171.0,0.44171527]
[1742858739456,0.0472,87172.0,87171.0,0.45371648]
[1742858739752,0.0472,87172.0,87171.0,0.45471648]
[1742858739954,0.0472,87172.0,87171.0,0.55471648]
[1742858740454,0.04804,87172.0,87171.0,0.45471648]
[1742858740755,0.0472,87172.0,87171.0,0.45671648]
[1742858740956,0.1146993,87174.0,87173.0,0.1146993]
[1742858741162,0.1146993,87174.0,87173.0,0.3846993]
[1742858741455,0.1628393,87174.0,87173.0,0.3855393]
[1742858742049,0.04814,87174.0,87173.0,0.4955393]
[1742858742241,0.0473,87174.0,87173.0,0.4955393]
[1742858742445,0.0473,87174.0,87173.0,0.4765393]
[1742858742654,0.04814,87174.0,87173.0,0.4765393]
[1742858742843,0.00084,87174.0,87173.0,0.3865393]
[1742858743042,0.1146993,87174.0,87173.0,0.4448889]
[1742858743245,0.1155393,87174.0,87173.0,0.4448889]
[1742858744350,0.1155393,87174.0,87173.0,0.00284]
[1742858744557,0.0573536,87168.0,87162.0,0.22859369]
[1742858744760,0.1147138,87163.0,87162.0,0.60287168]
[1742858744953,0.079659,87175.0,87168.0,0.0573531]
[1742858745258,0.02291001,87175.0,87174.0,0.4755517]
[1742858745455,0.137008,87175.0,87174.0,0.6986317]
[1742858745644,0.13760801,87175.0,87174.0,0.3378317]
[1742858746657,0.13760801,87175.0,87174.0,0.3388317]
[1742858746862,0.02291001,87175.0,87174.0,0.3388317]
[1742858747158,0.01989794,87175.0,87174.0,1.0796317]
[1742858747347,0.0498,87181.0,87180.0,0.1146914]
[1742858747548,0.10044,87181.0,87180.0,0.1153314]
[1742858747956,0.2151301,87181.0,87180.0,0.1153314]
[1742858748157,0.2151301,87181.0,87180.0,0.00064]
[1742858748359,0.114698,87175.0,87174.0,0.0020524]
[1742858748654,0.114698,87175.0,87174.0,0.0016524]
[1742858748655,0.476338,87175.0,87174.0,0.0016524]
[1742858748848,0.476338,87175.0,87174.0,0.0010524]
[1742858749045,0.69214254,87175.0,87174.0,5.24e-05]
[1742858749442,0.70394322,87175.0,87174.0,5.24e-05]
[1742858749958,0.1147164,87161.0,87140.0,0.0573718]
[1742858750146,0.4763164,87161.0,87160.0,0.11332]
[1742858750343,0.5763164,87161.0,87160.0,0.11328]
[1742858750546,0.69102884,87161.0,87160.0,0.11328]
[1742858750755,0.69102884,87161.0,87160.0,0.2279977]
[1742858751256,0.69102884,87161.0,87160.0,0.0006]
[1742858751454,0.1147217,87157.0,87156.0,0.227363]
[1742858751657,0.1155217,87157.0,87156.0,0.228163]
[1742858751857,0.2156217,87157.0,87156.0,0.228163]
[1742858752358,0.33035257,87157.0,87156.0,0.228163]
[1742858752858,0.33035257,87157.0,87156.0,0.230163]
[1742858753350,0.33035257,87157.0,87156.0,0.117523]
[1742858754654,0.16673087,87157.0,87156.0,0.117523]
[1742858754852,0.0008,87157.0,87156.0,0.698323]
[1742858755057,0.0008,87157.0,87156.0,0.700323]
[1742858755356,0.0464,87168.0,87167.0,0.1147085]
[1742858755659,0.0008,87168.0,87167.0,0.4856227]
[1742858755855,0.0008,87168.0,87167.0,0.8464227]
[1742858756156,0.11487797,87169.0,87168.0,0.1147072]
[1742858756368,0.11567797,87169.0,87168.0,0.1155072]
[1742858756660,0.2768141,87169.0,87168.0,0.0471]
[1742858756859,0.3251141,87169.0,87168.0,0.0463]
[1742858757062,0.3251141,87169.0,87168.0,0.0008]
[1742858757262,0.3251141,87169.0,87167.0,0.001]
[1742858757263,0.1147072,87168.0,87167.0,0.001]
[1742858757458,0.1155072,87168.0,87167.0,0.0016]
[1742858757649,0.2192072,87168.0,87167.0,0.0016]
[1742858757957,0.33392885,87168.0,87167.0,0.0016]
[1742858758165,0.69472885,87168.0,87167.0,0.001]
[1742858758461,0.1147098,87166.0,87165.0,0.11316]
[1742858758658,0.1147124,87164.0,87163.0,0.01185941]
[1742858758863,0.1147282,87152.0,87151.0,0.00045897]
[1742858759059,0.1155282,87152.0,87151.0,0.11421897]
[1742858759366,0.2177282,87152.0,87151.0,0.11421897]
[1742858759664,0.2177282,87152.0,87151.0,0.22894857]
[1742858759853,0.1709282,87152.0,87151.0,0.22894857]
[1742858760051,0.1155282,87152.0,87151.0,0.28174857]
[1742858760252,0.1147282,87152.0,87151.0,0.28174857]
[1742858760451,0.1147263,87154.0,87153.0,0.1720871]
[1742858760656,0.1155263,87154.0,87153.0,0.2234871]
[1742858761964,0.0008,87154.0,87153.0,0.2254871]
[1742858762967,0.1155256,87154.0,87153.0,0.2254871]
[1742858763353,0.1155256,87154.0,87153.0,0.2274871]
[1742858763553,0.1155256,87154.0,87153.0,0.0554]
[1742858763956,0.1723256,87154.0,87153.0,0.0554]
[1742858764153,0.1707256,87154.0,87153.0,0.1701269]
[1742858764457,0.1707256,87154.0,87153.0,0.3701269]
[1742858764458,0.0007476,87154.0,87153.0,0.3701269]
[1742858764652,0.16930308,87164.0,87163.0,0.1147138]
[1742858764855,0.08214308,87164.0,87163.0,0.9493538]
[1742858765055,0.08214308,87164.0,87163.0,0.36148]
[1742858765370,0.19685548,87164.0,87163.0,0.11392]
[1742858765867,0.31025548,87164.0,87163.0,0.11392]
[1742858766068,0.31025548,87164.0,87163.0,0.11492]
[1742858766268,0.31025548,87164.0,87163.0,0.2296338]
[1742858766560,0.31025548,87164.0,87163.0,0.11492]
[1742858766764,0.31025548,87164.0,87163.0,0.001]
[1742858766963,0.4249824,87164.0,87163.0,0.001]
[1742858767760,0.4249824,87164.0,87163.0,0.003]
[1742858768458,0.34367932,87164.0,87163.0,0.003]
[1742858770369,0.1147282,87152.0,87151.0,0.00045897]
[1742858770558,0.1154882,87152.0,87151.0,0.00045897]
[1742858770759,0.2277882,87152.0,87151.0,0.00113897]
[1742858770961,0.34251512,87152.0,87151.0,0.00045897]
[1742858771163,0.34251512,87152.0,87151.0,0.00109897]
[1742858771673,0.34251512,87152.0,87151.0,0.00309897]
[1742858772656,0.34251512,87152.0,87151.0,0.00409897]
[1742858772856,0.34251512,87152.0,87151.0,0.00345897]
[1742858773060,0.34251512,87152.0,87151.0,0.00405897]
[1742858773269,0.34251512,87152.0,87151.0,0.00345897]
[1742858773766,0.34251512,87152.0,87151.0,0.00405897]
[1742858774471,0.34251512,87152.0,87151.0,0.00345897]
[1742858774657,0.1147427,87141.0,87140.0,0.0531]
[1742858774856,0.4763027,87141.0,87140.0,0.0737]
[1742858775457,0.5864027,87141.0,87140.0,0.0737]
[1742858775858,0.5874027,87141.0,87140.0,0.08933774]
[1742858776057,0.5874027,87141.0,87140.0,0.14213774]
[1742858776454,0.00176,87141.0,87140.0,0.73080174]
[1742858776672,0.17227337,87149.0,87148.0,0.1147335]
[1742858776971,0.17303337,87149.0,87148.0,0.7361335]
[1742858777262,0.17227337,87149.0,87148.0,0.7361335]
[1742858777467,0.17227337,87149.0,87148.0,0.8443335]
[1742858777875,0.17327337,87149.0,87148.0,0.8443335]
[1742858780068,0.17327337,87149.0,87148.0,0.85602456]
[1742858781355,0.17327337,87149.0,87148.0,0.4835335]
[1742858781665,0.17403337,87149.0,87148.0,0.1088]
[1742858781854,0.28878003,87149.0,87148.0,0.1082]
[1742858782061,0.28878003,87149.0,87148.0,0.10884]
[1742858782263,0.34738003,87149.0,87148.0,0.10884]
[1742858782462,0.34738003,87149.0,87148.0,0.2235735]
[1742858782658,0.17403337,87149.0,87148.0,0.2235735]
[1742858782863,0.17403337,87149.0,87148.0,0.33821505]
[1742858783059,0.17403337,87149.0,87148.0,0.23821505]
[1742858783265,0.17403337,87149.0,87148.0,0.35145505]
[1742858783771,0.17403337,87149.0,87148.0,0.3368135]
[1742858784871,0.17403337,87149.0,87148.0,0.4368135]
[1742858785169,0.05929857,87149.0,87148.0,0.4368135]
[1742858787073,0.05929857,87149.0,87148.0,0.45146838]
[1742858787973,0.0553,87155.0,87148.0,0.45146838]
[1742858787974,0.41,87174.0,87161.0,0.1147164]
[1742858788179,0.20383313,87162.0,87161.0,1.0995564]
[1742858788372,0.1150967,87176.0,87175.0,0.114698]
[1742858788674,0.1157367,87176.0,87175.0,0.478978]
[1742858789062,0.1752367,87176.0,87175.0,0.478978]
[1742858789666,0.2314367,87176.0,87175.0,0.478978]
[1742858789865,0.2334367,87176.0,87175.0,0.478978]
[1742858792076,0.2314367,87176.0,87175.0,0.478978]
[1742858792280,0.2314367,87176.0,87175.0,0.588478]
[1742858794275,0.05724,87176.0,87175.0,0.588478]
[1742858794779,0.0566,87176.0,87175.0,0.697838]
[1742858795081,0.0566,87176.0,87175.0,0.944998]
[1742858795082,0.0004,87176.0,87175.0,0.944998]
[1742858795275,0.0004,87176.0,87175.0,1.058318]
[1742858797379,0.0004,87176.0,87175.0,1.158318]
[1742858798478,0.00017207,87184.0,87183.0,0.1146874]
[1742858798682,0.00017207,87184.0,87183.0,1.0854874]
[1742858798879,0.0004,87192.0,87191.0,0.1146769]
[1742858799079,0.1146536,87209.0,87207.0,0.1146559]
[1742858799377,0.1146536,87209.0,87207.0,0.6680559]
[1742858799572,0.0546,87208.0,87207.0,0.6680559]
[1742858799771,0.05532,87208.0,87207.0,0.7255759]
[1742858800475,0.05832,87208.0,87207.0,0.7255759]
[1742858800783,0.06232,87208.0,87207.0,0.5055759]
[1742858800971,0.06232,87208.0,87207.0,0.51733583]
[1742858801172,0.06224,87208.0,87207.0,0.51733583]
[1742858801577,0.0616,87208.0,87207.0,0.51733583]
[1742858801974,0.12100001,87208.0,87207.0,0.51733583]
[1742858802170,0.12100001,87208.0,87207.0,0.57643583]
[1742858802377,0.1204,87208.0,87207.0,0.5646759]
[1742858803281,0.1204,87208.0,87207.0,0.57661235]
[1742858803478,0.1204,87208.0,87207.0,0.80661235]
[1742858803882,0.1204,87208.0,87207.0,0.57661235]
[1742858804684,0.0616,87208.0,87207.0,0.79661235]
[1742858806470,0.0616,87208.0,87207.0,0.3353759]
[1742858806684,0.1762546,87208.0,87207.0,0.4486959]
[1742858806882,0.1768946,87208.0,87207.0,0.4486959]
[1742858807082,0.2337946,87208.0,87207.0,0.4486959]
[1742858807688,0.2337946,87208.0,87207.0,0.22072]
[1742858807985,0.34846363,87208.0,87207.0,0.114]
[1742858808177,0.34846363,87208.0,87207.0,0.2279359]
[1742858808374,0.34846363,87208.0,87207.0,0.2285759]
[1742858808782,0.2337946,87208.0,87207.0,0.2285759]
[1742858810189,0.11914,87208.0,87207.0,0.5585759]
[1742858810390,0.0616,87208.0,87207.0,0.6754759]
[1742858811476,0.0074,87208.0,87207.0,0.6754759]
[1742858812477,0.0074,87208.0,87207.0,0.68735404]
[1742858812887,0.0004,87208.0,87207.0,0.68735404]
[1742858813591,1e-07,87208.0,87207.0,0.68735404]
[1742858816682,1e-07,87208.0,87207.0,0.68727404]
[1742858817494,1e-07,87208.0,87207.0,0.57407404]
[1742858817794,1e-07,87208.0,87207.0,0.68723404]
[1742858826809,1e-07,87208.0,87207.0,0.51657404]
[1742858827000,1e-07,87208.0,87207.0,0.56997404]
[1742858827504,1e-07,87208.0,87207.0,0.77574303]
[1742858827696,1e-07,87208.0,87207.0,0.82984303]
[1742858828792,1e-07,87208.0,87207.0,1.19064303]
[1742858829196,1e-07,87208.0,87207.0,1.20561289]
[1742858829402,1e-07,87208.0,87207.0,1.26241289]
[1742858829600,1e-07,87208.0,87207.0,1.26249289]
[1742858830091,1e-07,87208.0,87207.0,1.45249289]
[1742858830295,1e-07,87208.0,87207.0,1.39569289]
[1742858830497,0.22932373,87208.0,87207.0,0.47640899]
[1742858830709,0.22932373,87208.0,87202.0,0.21753256]
[1742858830710,0.1146611,87203.0,87202.0,0.21753256]
[1742858831004,0.1154211,87203.0,87202.0,0.33283506]
[1742858831500,0.1154211,87203.0,87202.0,0.21817256]
[1742858831902,0.1154211,87203.0,87202.0,0.33283506]
[1742858832106,0.1154211,87203.0,87202.0,0.33383506]
[1742858833808,0.2790211,87203.0,87202.0,0.33383506]